fUST/lending_fUST_20240424
["ID","MTS","AMOUNT","RATE_DAILY","PERIOD"]
[323322150,1713892238284,-300.0,0.00019175,2]
[323322151,1713892238294,-539.63707301,0.00019176,2]
[323322152,1713892238303,-203.76133713,0.00019176,2]
[323322153,1713892238313,-190.20010034,0.00019176,2]
[323322154,1713892238322,-442.11475483,0.00019176,2]
[323322155,1713892238332,-977.06231715,0.00019176,2]
[323322156,1713892238341,-154.8961369,0.00019176,2]
[323322157,1713892238350,-203.50588859,0.00019176,2]
[323322158,1713892238361,-1489.75322658,0.00019176,2]
[323322160,1713892238371,-154.82968734,0.00019176,2]
[323322162,1713892238380,-521.29976744,0.00019177,2]
[323322163,1713892238389,-204.24092821,0.00019177,2]
[323322164,1713892238398,-154.8915759,0.00019177,2]
[323322165,1713892238436,-193.52697819,0.00019177,2]
[323322166,1713892238445,-500.0,0.00019178,2]
[323322167,1713892238455,-500.0,0.00019178,2]
[323322168,1713892238464,-500.93018196,0.00019178,2]
[323322170,1713892238473,-500.0,0.00019178,2]
[323322171,1713892238482,-500.0,0.00019178,2]
[323322173,1713892238492,-500.0,0.00019178,2]
[323322175,1713892238501,-500.0,0.00019178,2]
[323322177,1713892238510,-999.54,0.00019178,2]
[323322179,1713892238520,-500.0,0.00019178,2]
[323322181,1713892238529,-500.0,0.00019178,2]
[323322183,1713892238539,-500.0,0.00019178,2]
[323322185,1713892238548,-500.0,0.00019178,2]
[323322187,1713892238558,-253.20545421,0.00019178,2]
[323322190,1713892238576,-246.79454579,0.00019178,2]
[323322192,1713892238585,-500.0,0.00019178,2]
[323322194,1713892238595,-500.0,0.00019178,2]
[323322196,1713892238604,-500.0,0.00019178,2]
[323322198,1713892238613,-673.29,0.00019178,2]
[323322200,1713892238622,-500.0,0.00019178,2]
[323322202,1713892238631,-500.0,0.00019178,2]
[323322204,1713892238640,-500.0,0.00019178,2]
[323322205,1713892238649,-500.0,0.00019178,2]
[323322207,1713892238658,-500.0,0.00019178,2]
[323322209,1713892238667,-500.0,0.00019178,2]
[323322211,1713892238676,-500.0,0.00019178,2]
[323322213,1713892238685,-500.0,0.00019178,2]
[323322215,1713892238694,-500.0,0.00019178,2]
[323322217,1713892238703,-500.0,0.00019178,2]
[323322219,1713892238712,-200.0,0.00019178,2]
[323322221,1713892238721,-500.0,0.00019178,2]
[323322223,1713892238731,-500.0,0.00019178,2]
[323322225,1713892238745,-500.0,0.00019178,2]
[323322227,1713892238755,-500.0,0.00019178,2]
[323322229,1713892238764,-500.0,0.00019178,2]
[323322231,1713892238773,-500.0,0.00019178,2]
[323322233,1713892238783,-500.0,0.00019178,2]
[323322235,1713892238793,-500.0,0.00019178,2]
[323322237,1713892238802,-500.0,0.00019178,2]
[323322239,1713892238812,-500.0,0.00019178,2]
[323322241,1713892238822,-500.0,0.00019178,2]
[323322243,1713892238832,-500.0,0.00019178,2]
[323322245,1713892238841,-500.0,0.00019178,2]
[323322247,1713892238851,-500.0,0.00019178,2]
[323322249,1713892238859,-592.89939903,0.00019178,2]
[323322251,1713892238869,-500.0,0.00019178,2]
[323322253,1713892238878,-500.0,0.00019178,2]
[323322255,1713892238886,-500.0,0.00019178,2]
[323322257,1713892238896,-500.0,0.00019178,2]
[323322259,1713892238905,-500.0,0.00019178,2]
[323322261,1713892238915,-500.0,0.00019178,2]
[323322263,1713892238924,-500.0,0.00019178,2]
[323322265,1713892238933,-500.0,0.00019178,2]
[323322267,1713892238944,-154.52192499,0.00019178,2]
[323322269,1713892238953,-500.0,0.00019178,2]
[323322271,1713892238963,-518.78384861,0.00019178,2]
[323322273,1713892238973,-500.0,0.00019178,2]
[323322275,1713892238985,-500.0,0.00019178,2]
[323322277,1713892238995,-1289.31,0.00019178,2]
[323322279,1713892239004,-500.0,0.00019178,2]
[323322281,1713892239014,-500.0,0.00019178,2]
[323322283,1713892239023,-770.9,0.00019178,2]
[323322285,1713892239032,-500.0,0.00019178,2]
[323322298,1713892239146,-500.0,0.00019178,2]
[323322300,1713892239155,-500.0,0.00019178,2]
[323322302,1713892239164,-500.0,0.00019178,2]
[323322304,1713892239175,-572.62,0.00019178,2]
[323322306,1713892239184,-500.0,0.00019178,2]
[323322308,1713892239194,-500.0,0.00019178,2]
[323322310,1713892239204,-743.64,0.00019178,2]
[323322312,1713892239213,-500.0,0.00019178,2]
[323322314,1713892239222,-500.0,0.00019178,2]
[323322316,1713892239230,-500.0,0.00019178,2]
[323322318,1713892239240,-500.0,0.00019178,2]
[323322320,1713892239249,-735.39,0.00019178,2]
[323322322,1713892239258,-500.0,0.00019178,2]
[323322324,1713892239267,-500.0,0.00019178,2]
[323322326,1713892239276,-500.0,0.00019178,2]
[323322328,1713892239285,-500.0,0.00019178,2]
[323322329,1713892239294,-500.0,0.00019178,2]
[323322332,1713892239304,-500.0,0.00019178,2]
[323322334,1713892239313,-614.3,0.00019178,2]
[323322336,1713892239322,-500.0,0.00019178,2]
[323322337,1713892239331,-500.0,0.00019178,2]
[323322339,1713892239341,-664.0,0.00019178,2]
[323322341,1713892239350,-500.0,0.00019178,2]
[323322343,1713892239358,-500.0,0.00019178,2]
[323322345,1713892239368,-500.0,0.00019178,2]
[323322347,1713892239377,-500.0,0.00019178,2]
[323322349,1713892239386,-500.0,0.00019178,2]
[323322351,1713892239395,-500.0,0.00019178,2]
[323322353,1713892239404,-500.0,0.00019178,2]
[323322355,1713892239413,-500.0,0.00019178,2]
[323322357,1713892239422,-500.0,0.00019178,2]
[323322359,1713892239430,-500.0,0.00019178,2]
[323322361,1713892239439,-992.95,0.00019178,2]
[323322363,1713892239448,-1891.37,0.00019178,2]
[323322365,1713892239457,-500.0,0.00019178,2]
[323322367,1713892239466,-638.37,0.00019178,2]
[323322369,1713892239475,-500.0,0.00019178,2]
[323322371,1713892239484,-500.0,0.00019178,2]
[323322373,1713892239494,-500.0,0.00019178,2]
[323322375,1713892239503,-500.0,0.00019178,2]
[323322377,1713892239513,-210.23200303,0.00019178,2]
[323322379,1713892239522,-557.59,0.00019178,2]
[323322381,1713892239531,-500.0,0.00019178,2]
[323322383,1713892239540,-500.0,0.00019178,2]
[323322385,1713892239549,-500.0,0.00019178,2]
[323322387,1713892239558,-500.0,0.00019178,2]
[323322389,1713892239568,-635.74,0.00019178,2]
[323322391,1713892239577,-500.0,0.00019178,2]
[323322393,1713892239586,-719.68,0.00019178,2]
[323322395,1713892239595,-500.0,0.00019178,2]
[323322397,1713892239604,-500.0,0.00019178,2]
[323322399,1713892239613,-500.0,0.00019178,2]
[323322402,1713892239622,-500.0,0.00019178,2]
[323322406,1713892239631,-1366.55,0.00019178,2]
[323322409,1713892239640,-500.0,0.00019178,2]
[323322411,1713892239650,-500.0,0.00019178,2]
[323322413,1713892239659,-500.0,0.00019178,2]
[323322415,1713892239669,-500.0,0.00019178,2]
[323322417,1713892239678,-500.0,0.00019178,2]
[323322419,1713892239688,-1020.65,0.00019178,2]
[323322421,1713892239697,-500.0,0.00019178,2]
[323322423,1713892239706,-500.0,0.00019178,2]
[323322425,1713892239715,-603.54,0.00019178,2]
[323322428,1713892239724,-500.0,0.00019178,2]
[323322431,1713892239733,-500.0,0.00019178,2]
[323322433,1713892239745,-888.43,0.00019178,2]
[323322435,1713892239754,-320.3555678,0.00019178,2]
[323322437,1713892239763,-500.0,0.00019178,2]
[323322438,1713892239773,-500.0,0.00019178,2]
[323322440,1713892239783,-1011.73,0.00019178,2]
[323322443,1713892239792,-500.0,0.00019178,2]
[323322445,1713892239801,-500.0,0.00019178,2]
[323322447,1713892239810,-500.0,0.00019178,2]
[323322449,1713892239820,-1460.89,0.00019178,2]
[323322451,1713892239830,-1196.32,0.00019178,2]
[323322453,1713892239840,-1219.47,0.00019178,2]
[323322455,1713892239849,-500.0,0.00019178,2]
[323322457,1713892239858,-500.0,0.00019178,2]
[323322459,1713892239868,-500.0,0.00019178,2]
[323322460,1713892239877,-500.0,0.00019178,2]
[323322461,1713892239887,-500.0,0.00019178,2]
[323322462,1713892239896,-500.0,0.00019178,2]
[323322463,1713892239905,-731.37,0.00019178,2]
[323322464,1713892239914,-500.0,0.00019178,2]
[323322465,1713892239923,-500.0,0.00019178,2]
[323322466,1713892239932,-500.0,0.00019178,2]
[323322467,1713892239941,-500.0,0.00019178,2]
[323322468,1713892239951,-760.07,0.00019178,2]
[323322469,1713892239960,-500.0,0.00019178,2]
[323322470,1713892239969,-500.0,0.00019178,2]
[323322471,1713892239978,-500.0,0.00019178,2]
[323322472,1713892239988,-500.0,0.00019178,2]
[323322473,1713892239998,-500.0,0.00019178,2]
[323322475,1713892240008,-500.0,0.00019178,2]
[323322477,1713892240017,-500.0,0.00019178,2]
[323322479,1713892240027,-500.0,0.00019178,2]
[323322481,1713892240036,-971.18,0.00019178,2]
[323322483,1713892240045,-500.0,0.00019178,2]
[323322485,1713892240054,-500.0,0.00019178,2]
[323322487,1713892240064,-500.0,0.00019178,2]
[323322489,1713892240073,-500.0,0.00019178,2]
[323322491,1713892240082,-711.53,0.00019178,2]
[323322493,1713892240091,-500.0,0.00019178,2]
[323322495,1713892240101,-500.0,0.00019178,2]
[323322497,1713892240110,-500.0,0.00019178,2]
[323322499,1713892240119,-500.0,0.00019178,2]
[323322501,1713892240129,-1586.74,0.00019178,2]
[323322503,1713892240138,-500.0,0.00019178,2]
[323322505,1713892240146,-500.0,0.00019178,2]
[323322507,1713892240155,-500.0,0.00019178,2]
[323322509,1713892240165,-500.0,0.00019178,2]
[323322510,1713892240175,-500.0,0.00019178,2]
[323322512,1713892240184,-1460.26,0.00019178,2]
[323322514,1713892240193,-9194.11,0.00019178,2]
[323322516,1713892240202,-500.0,0.00019178,2]
[323322518,1713892240211,-500.0,0.00019178,2]
[323322520,1713892240220,-8148.99,0.00019178,2]
[323322522,1713892240230,-159.68196552,0.00019178,2]
[323322524,1713892240239,-500.0,0.00019178,2]
[323322526,1713892240249,-500.0,0.00019178,2]
[323322528,1713892240258,-500.17158671,0.00019178,2]
[323322530,1713892240267,-500.0,0.00019178,2]
[323322532,1713892240277,-568.79,0.00019178,2]
[323322534,1713892240287,-500.0,0.00019178,2]
[323322536,1713892240296,-500.0,0.00019178,2]
[323322538,1713892240305,-956.35,0.00019178,2]
[323322540,1713892240315,-20599.21,0.00019178,2]
[323322542,1713892240325,-500.0,0.00019178,2]
[323322544,1713892240334,-500.0,0.00019178,2]
[323322546,1713892240343,-500.0,0.00019178,2]
[323322548,1713892240353,-500.0,0.00019178,2]
[323322550,1713892240362,-500.0,0.00019178,2]
[323322552,1713892240371,-500.0,0.00019178,2]
[323322554,1713892240380,-361.08025354,0.00019178,2]
[323322556,1713892240389,-4193.38,0.00019178,2]
[323322558,1713892240398,-500.0,0.00019178,2]
[323322560,1713892240407,-189.35698328,0.00019178,2]
[323322562,1713892240417,-500.0,0.00019178,2]
[323322564,1713892240426,-500.0,0.00019178,2]
[323322566,1713892240436,-1145.14,0.00019178,2]
[323322568,1713892240445,-500.0,0.00019178,2]
[323322570,1713892240454,-500.0,0.00019178,2]
[323322572,1713892240463,-500.0,0.00019178,2]
[323322574,1713892240472,-3961.24,0.00019178,2]
[323322576,1713892240481,-661.73,0.00019178,2]
[323322578,1713892240490,-1199.39,0.00019178,2]
[323322579,1713892240500,-2037.88,0.00019178,2]
[323322581,1713892240509,-500.0,0.00019178,2]
[323322583,1713892240518,-500.0,0.00019178,2]
[323322585,1713892240527,-500.0,0.00019178,2]
[323322587,1713892240536,-500.0,0.00019178,2]
[323322589,1713892240545,-500.0,0.00019178,2]
[323322591,1713892240554,-500.0,0.00019178,2]
[323322593,1713892240562,-500.0,0.00019178,2]
[323322595,1713892240571,-4728.77,0.00019178,2]
[323322597,1713892240580,-500.0,0.00019178,2]
[323322599,1713892240589,-500.0,0.00019178,2]
[323322601,1713892240598,-500.0,0.00019178,2]
[323322603,1713892240608,-500.0,0.00019178,2]
[323322605,1713892240616,-621.46226607,0.00019178,2]
[323322607,1713892240626,-500.0,0.00019178,2]
[323322609,1713892240635,-500.0,0.00019178,2]
[323322611,1713892240643,-6054.01,0.00019178,2]
[323322613,1713892240652,-8207.92,0.00019178,2]
[323322615,1713892240662,-500.0,0.00019178,2]
[323322617,1713892240670,-500.0,0.00019178,2]
[323322619,1713892240680,-864.41,0.00019178,2]
[323322621,1713892240689,-500.0,0.00019178,2]
[323322623,1713892240699,-500.0,0.00019178,2]
[323322625,1713892240708,-500.0,0.00019178,2]
[323322627,1713892240718,-711.15,0.00019178,2]
[323322629,1713892240727,-500.0,0.00019178,2]
[323322631,1713892240737,-500.0,0.00019178,2]
[323322633,1713892240752,-501.81796725,0.00019178,2]
[323322635,1713892240761,-250.86479714,0.00019178,2]
[323322637,1713892240772,-500.0,0.00019178,2]
[323322639,1713892240782,-500.0,0.00019178,2]
[323322641,1713892240794,-500.0,0.00019178,2]
[323322643,1713892240803,-500.0,0.00019178,2]
[323322645,1713892240812,-4167.75,0.00019178,2]
[323322647,1713892240826,-500.0,0.00019178,2]
[323322649,1713892240838,-3870.79,0.00019178,2]
[323322651,1713892240848,-500.0,0.00019178,2]
[323322653,1713892240858,-1273.01,0.00019178,2]
[323322656,1713892240868,-500.0,0.00019178,2]
[323322657,1713892240879,-500.0,0.00019178,2]
[323322660,1713892240889,-500.0,0.00019178,2]
[323322661,1713892240898,-500.0,0.00019178,2]
[323322663,1713892240907,-1048.05,0.00019178,2]
[323322666,1713892240918,-500.0,0.00019178,2]
[323322668,1713892240928,-600.47,0.00019178,2]
[323322670,1713892240939,-2978.33,0.00019178,2]
[323322671,1713892240948,-500.0,0.00019178,2]
[323322673,1713892240958,-500.0,0.00019178,2]
[323322676,1713892240968,-1004.15,0.00019178,2]
[323322677,1713892240977,-500.0,0.00019178,2]
[323322679,1713892240987,-500.0,0.00019178,2]
[323322682,1713892240998,-500.0,0.00019178,2]
[323322683,1713892241008,-1317.36,0.00019178,2]
[323322685,1713892241019,-1912.22,0.00019178,2]
[323322687,1713892241030,-668.5,0.00019178,2]
[323322689,1713892241039,-1200.94,0.00019178,2]
[323322691,1713892241049,-878.91,0.00019178,2]
[323322693,1713892241058,-622.07,0.00019178,2]
[323322695,1713892241068,-500.0,0.00019178,2]
[323322697,1713892241077,-500.0,0.00019178,2]
[323322708,1713892241173,-465.43735816,0.00019178,2]
[323322710,1713892241183,-500.0,0.00019178,2]
[323322712,1713892241193,-162.73458,0.00019178,2]
[323322714,1713892241202,-160.094856,0.00019178,2]
[323322716,1713892241211,-153.0,0.00019188,2]
[323322718,1713892241220,-153.0,0.00019188,2]
[323322720,1713892241229,-406.9039864,0.00019188,2]
[323322722,1713892241238,-153.0,0.00019188,2]
[323322724,1713892241249,-197.91829664,0.00019215,2]
[323322725,1713892241258,-395.425324,0.00019252,2]
[323322727,1713892241267,-395.425324,0.00019252,2]
[323322731,1713892241288,-151.0,0.00019252,2]
[323322733,1713892241300,-44444.0,0.00019252,2]
[323322735,1713892241309,-157.53850696,0.00019257,2]
[323322737,1713892241319,-197.91829664,0.00019284,2]
[323322739,1713892241329,-203.583665,0.000193,2]
[323322741,1713892241339,-151.0,0.00019351,2]
[323322743,1713892241349,-151.0,0.00019352,2]
[323322745,1713892241359,-151.0,0.00019352,2]
[323322747,1713892241368,-151.0,0.00019352,2]
[323322749,1713892241378,-151.0,0.00019352,2]
[323322752,1713892241388,-151.0,0.00019352,2]
[323322754,1713892241398,-151.0,0.00019352,2]
[323322756,1713892241408,-151.0,0.00019352,2]
[323322758,1713892241418,-151.0,0.00019352,2]
[323322760,1713892241427,-151.0,0.00019352,2]
[323322762,1713892241437,-151.0,0.00019352,2]
[323322764,1713892241446,-151.0,0.00019352,2]
[323322766,1713892241456,-197.91829664,0.00019352,2]
[323322768,1713892241465,-436.171445,0.00019352,2]
[323322770,1713892241475,-436.171445,0.00019352,2]
[323322772,1713892241484,-151.0,0.00019352,2]
[323322774,1713892241494,-151.0,0.00019352,2]
[323322776,1713892241503,-151.0,0.00019352,2]
[323322778,1713892241512,-151.0,0.00019352,2]
[323322780,1713892241522,-151.0,0.00019352,2]
[323322782,1713892241531,-151.0,0.00019352,2]
[323322784,1713892241540,-395.425324,0.00019352,2]
[323322786,1713892241549,-395.425324,0.00019352,2]
[323322788,1713892241559,-164.710514,0.00019352,2]
[323322790,1713892241568,-153.0,0.000194,2]
[323322792,1713892241578,-153.0,0.000194,2]
[323322794,1713892241587,-153.0,0.000194,2]
[323322796,1713892241597,-153.0,0.000194,2]
[323322798,1713892241606,-306.0,0.000194,2]
[323322800,1713892241616,-306.0,0.000194,2]
[323322802,1713892241625,-153.0,0.000194,2]
[323322804,1713892241633,-203.583665,0.000194,2]
[323322806,1713892241642,-153.0,0.000194,2]
[323322808,1713892241652,-153.0,0.00019405,2]
[323322810,1713892241661,-153.0,0.00019414,2]
[323322812,1713892241671,-153.0,0.00019414,2]
[323322814,1713892241680,-153.0,0.00019414,2]
[323322816,1713892241689,-153.0,0.00019414,2]
[323322818,1713892241699,-153.0,0.00019414,2]
[323322820,1713892241708,-153.0,0.00019414,2]
[323322822,1713892241717,-153.0,0.00019414,2]
[323322824,1713892241726,-3585.76784421,0.0001945,2]
[323322826,1713892241737,-151.0,0.0001945,2]
[323322828,1713892241748,-151.0,0.0001945,2]
[323322830,1713892241757,-151.0,0.0001945,2]
[323322832,1713892241767,-151.0,0.0001945,2]
[323322834,1713892241776,-84480.90682688,0.00019452,2]
[323323019,1713892243610,-500.0,0.00019178,2]
[323323021,1713892243620,-389.49999999,0.00019178,2]
[323323158,1713892245828,522.39864955,0.000189,2]
[323323358,1713892503021,425.0,0.000121,2]
[323323376,1713893141140,-300.0,0.00014728,2]
[323323377,1713893141162,-300.0,0.00016123,2]
[323323378,1713893141184,-300.0,0.00018151,2]
[323323379,1713893141208,-2463.36208216,0.00018152,2]
[323323382,1713893233101,-300.0,0.00018121,2]
[323323383,1713893233124,-5233.93599912,0.00018122,2]
[323323384,1713893249090,-8072.63972254,0.00018122,2]
[323323387,1713893347135,-300.0,0.00018121,2]
[323323388,1713893347275,-11501.98054305,0.00018122,2]
[323323389,1713893355237,-91.44373529,0.00018122,2]
[323323390,1713893355257,-450.25329964,0.000188,2]
[323323391,1713893355276,-335.63296507,0.000189,2]
[323323427,1713893432444,-12.6328013,0.000189,2]
[323323429,1713893432454,-200.0,0.00019,2]
[323323430,1713893432465,-637.9252794,0.00019,2]
[323323433,1713893432475,-535.01839288,0.00019078,2]
[323323658,1713893440580,-1464.98160712,0.00019078,2]
[323323660,1713893440590,-153.0,0.000191,2]
[323323662,1713893440600,-153.0,0.000191,2]
[323323664,1713893440609,-153.0,0.000191,2]
[323323666,1713893440618,-525.33914729,0.00019176,2]
[323323668,1713893440627,-189.19295912,0.00019176,2]
[323323670,1713893440636,-33042.07508373,0.00019177,2]
[323324202,1713893447056,-373.70689802,0.00019177,2]
[323324515,1713893511241,1082.3897028,0.00019078,10]
[323324516,1713893511278,2591.79213253,0.00019078,10]
[323324518,1713893535171,3674.18183533,0.00019177,10]
[323324519,1713893551175,1492.12951727,0.00019177,10]
[323324520,1713893585183,907.16710257,0.00019177,10]
[323324537,1713894452160,-300.0,0.00018151,2]
[323324538,1713894452182,-146.32266912,0.00018152,2]
[323324546,1713894545390,-300.0,0.00014728,2]
[323324547,1713894545412,-420.0,0.00016201,2]
[323324548,1713894545439,-587.0,0.00017821,2]
[323324549,1713894545465,-24693.0,0.00018152,2]
[323324552,1713894560114,-60.67733088,0.00018152,2]
[323324553,1713894560136,-393.97163715,0.000188,2]
[323324554,1713894560157,-380.93103197,0.000189,2]
[323324695,1713894638718,-598.68533355,0.00018152,2]
[323324762,1713894640792,-94.02292532,0.00018152,2]
[323324763,1713894640801,-0.02036865,0.000189,2]
[323324765,1713894640810,-3247.75670603,0.00019,2]
[323325073,1713894653865,344.2532532,0.00017168,2]
[323325074,1713894660702,300.0,0.00014728,2]
[323325075,1713894661329,420.0,0.00016201,2]
[323325076,1713894662031,587.0,0.00017821,2]
[323325077,1713894720670,300.0,0.00014728,2]
[323325078,1713894721562,420.0,0.00016201,2]
[323325079,1713894722220,587.0,0.00017821,2]
[323325081,1713894886342,214.0,0.000195,10]
[323325083,1713895022724,300.0,0.00014728,2]
[323325084,1713895048210,180.31386745,0.00014728,2]
[323325085,1713895066199,180.31386745,0.00014728,2]
[323325098,1713895288013,-203.84630574,0.00015609,2]
[323325099,1713895288037,-154.81422293,0.00015609,2]
[323325100,1713895288063,-24030.33947133,0.0001561,2]
[323325101,1713895380707,300.0,0.00014728,2]
[323325102,1713895385025,199.0,0.000241,35]
[323325103,1713895385598,199.0,0.0002409,35]
[323325104,1713895386186,199.0,0.0002408,35]
[323325106,1713895537167,-154.81422293,0.00015425,2]
[323325107,1713895537190,-381.37015052,0.00015425,2]
[323325108,1713895541089,-701.94771615,0.00015424,2]
[323325109,1713895541110,-193.60170872,0.00015424,2]
[323325110,1713895541131,-930.37149063,0.00015425,2]
[323325111,1713895541151,-596.83635133,0.00015425,2]
[323325112,1713895541171,-206.06744026,0.00015426,2]
[323325113,1713895541193,-1878.1368462,0.00015426,2]
[323325114,1713895541215,-300.0,0.00015427,2]
[323325115,1713895541235,-157.03688122,0.00015427,2]
[323325116,1713895541255,-154.81422293,0.00015427,2]
[323325117,1713895541275,-300.0,0.00015427,2]
[323325118,1713895541296,-549.53648482,0.00015428,2]
[323325119,1713895541316,-162.02240911,0.00015428,2]
[323325120,1713895541336,-329.62886819,0.00015428,2]
[323325121,1713895541356,-2775.48792824,0.00015428,2]
[323325122,1713895541374,-2623.97456043,0.00015429,2]
[323325123,1713895541395,-808.46399951,0.00015429,2]
[323325124,1713895541415,-154.81422293,0.00015439,2]
[323325125,1713895541437,-869.66052867,0.0001561,2]
[323325126,1713895541461,-360.957234,0.00015891,2]
[323325127,1713895541483,-420.0,0.00016877,2]
[323325128,1713895541504,-420.0,0.0001697,2]
[323325129,1713895541525,-169.27597088,0.00017398,2]
[323325130,1713895541546,-551.63533714,0.00017508,2]
[323325131,1713895541566,-1393.74572883,0.00017599,2]
[323325132,1713895541588,-1167.45133884,0.000176,2]
[323325133,1713895541608,-776.40480682,0.00017945,2]
[323325134,1713895541721,-188.81822926,0.00018052,2]
[323325135,1713895541741,-1158.3410573,0.00018052,2]
[323325136,1713895541763,-670.22695736,0.0001825,2]
[323325137,1713895541784,-153.0,0.00018319,2]
[323325138,1713895541806,-153.0,0.00018378,2]
[323325139,1713895541826,-153.0,0.00018378,2]
[323325140,1713895541845,-306.2242914,0.00018378,2]
[323325141,1713895541866,-153.0,0.00018478,2]
[323325142,1713895541884,-153.0,0.00018478,2]
[323325143,1713895541907,-153.0,0.00018478,2]
[323325144,1713895541927,-153.0,0.00018478,2]
[323325145,1713895541952,-153.0,0.00018478,2]
[323325146,1713895541973,-153.0,0.00018478,2]
[323325147,1713895541993,-587.0,0.00018667,2]
[323325148,1713895542012,-199.97275379,0.00018698,2]
[323325149,1713895542032,-283.30931028,0.00018698,2]
[323325150,1713895542053,-459.645754,0.00018698,2]
[323325151,1713895542073,-1620.16401568,0.00018698,2]
[323325152,1713895542093,-186.74776466,0.00018699,2]
[323325153,1713895542115,-41319.10372666,0.000187,2]
[323325154,1713895560856,300.0,0.00014728,2]
[323325155,1713895639094,-203.84630574,0.00015269,2]
[323325156,1713895639114,-1578.09578874,0.00015269,2]
[323325157,1713895639135,-203.84630574,0.0001527,2]
[323325158,1713895639156,-300.0,0.00018476,2]
[323325159,1713895639177,-1311.74164115,0.00018476,2]
[323325160,1713895639199,-157.03688122,0.00018477,2]
[323325161,1713895639220,-206.06744026,0.00018477,2]
[323325162,1713895639240,-2623.97456043,0.00018477,2]
[323325163,1713895639261,-404.6761652,0.00018478,2]
[323325164,1713895639282,-698.31531816,0.00018698,2]
[323325165,1713895639303,-621.05665713,0.00018698,2]
[323325166,1713895639326,-1596.27884723,0.00018698,2]
[323325167,1713895639348,-250.53799758,0.00018698,2]
[323325168,1713895639369,-214.32148567,0.00018698,2]
[323325169,1713895639389,-239.27189585,0.00018698,2]
[323325170,1713895639409,-167.56447453,0.00018698,2]
[323325171,1713895639430,-166.5354688,0.00018698,2]
[323325172,1713895639453,-954.1175825,0.00018699,2]
[323325173,1713895639485,-221.82462095,0.00018699,2]
[323325174,1713895639511,-1731.41441912,0.00018699,2]
[323325175,1713895639534,-306.0,0.000187,2]
[323325176,1713895639557,-203.583665,0.000187,2]
[323325177,1713895639582,-48680.89627334,0.000187,2]
[323325178,1713895639604,-153.0,0.000189,2]
[323325179,1713895639628,-253.96760041,0.000189,2]
[323325180,1713895639653,-2000.0,0.00018977,2]
[323325181,1713895639674,-646.25672498,0.00018977,2]
[323325182,1713895639696,-53.24329397,0.00019,2]
[323325183,1713895639716,-153.0,0.00019,2]
[323325184,1713895639740,-600.68596376,0.00019,2]
[323325189,1713895752116,-432.83035053,0.00018051,2]
[323325190,1713895752135,-67.16964947,0.00018052,2]
[323325191,1713895763165,-113.30896753,0.00018052,2]
[323325192,1713895763189,-343.43776604,0.0001881,2]
[323325193,1713895763212,-1879.19326643,0.000189,2]
[323325409,1713895817489,6906.6196172,0.00017881,2]
[323325410,1713895825461,4830.29837665,0.00017881,2]
[323325605,1713895838191,-6906.6196172,0.00018061,2]
[323325606,1713895838200,-120.80673357,0.000189,2]
[323325607,1713895838210,-343.43776604,0.00019,2]
[323325608,1713895838220,-637.9252794,0.00019,2]
[323325609,1713895838230,-646.25672494,0.00019002,2]